bitfinex/quotes_ETHUSD_20240719
["timestamp","ask_amount","ask_price","bid_price","bid_amount"]
[1721373506926,4.12453889,3427.8,3427.1,0.44436463]
[1721373507458,6.49885889,3427.9,3427.1,0.44436463]
[1721373507762,6.49885889,3427.9,3427.2,0.48880609]
[1721373507977,4.12452889,3427.8,3427.2,0.48880609]
[1721373508261,2.3744,3427.9,3427.2,0.48880609]
[1721373508262,3.58160889,3427.9,3427.2,0.48880609]
[1721373508477,1.20720889,3428.0,3427.7,2.91738]
[1721373508633,2.271,3428.4,3427.8,3.26737577]
[1721373508634,1.20720889,3428.4,3427.8,3.26737577]
[1721373508983,1.20720889,3428.5,3427.8,0.35007577]
[1721373509542,1.20720889,3428.5,3427.8,3.26738577]
[1721373509771,1.20720889,3428.5,3427.8,3.209048]
[1721373509974,1.20720889,3428.5,3427.9,0.3209048]
[1721373510182,1.20720889,3428.4,3427.9,0.3209048]
[1721373510482,1.20720889,3428.5,3427.9,0.3209048]
[1721373510683,4.12393889,3428.5,3427.9,0.3209048]
[1721373510887,4.12393889,3428.5,3427.3,2.91773]
[1721373510888,1.20720889,3428.3,3427.3,2.91774]
[1721373511041,1.20720889,3428.2,3427.3,2.91774]
[1721373511382,1.20720889,3428.2,3427.1,5.91789]
[1721373511383,2.91715,3428.0,3427.1,5.91789]
[1721373511691,1.20720889,3428.2,3427.3,0.88585961]
[1721373511974,4.12412889,3428.3,3427.3,0.88585961]
[1721373512975,2.91708,3428.1,3427.3,0.88585961]
[1721373513153,1.20720889,3428.2,3427.3,3.96485961]
[1721373513358,1.20720889,3428.4,3427.7,2.91732]
[1721373513588,1.20720889,3428.4,3427.8,0.291732]
[1721373514742,1.20720889,3428.5,3427.8,0.291732]
[1721373514941,4.12392889,3428.5,3427.8,0.291732]
[1721373515185,4.12402889,3428.4,3427.8,0.291732]
[1721373515682,4.12392889,3428.5,3427.8,0.291732]
[1721373515845,1.20720889,3428.4,3427.8,0.291732]
[1721373516348,4.12392889,3428.5,3427.8,0.291732]
[1721373516547,4.12392889,3428.5,3427.9,0.3209132]
[1721373516979,1.20720889,3428.5,3427.9,0.3209132]
[1721373517285,1.20720889,3428.6,3427.9,0.3209132]
[1721373517587,4.43159267,3428.8,3427.9,0.3209132]
[1721373517588,1.20720889,3428.7,3427.9,0.3209132]
[1721373517791,1.20720889,3428.8,3428.1,2.91705]
[1721373518279,4.12351889,3429.0,3428.1,2.91705]
[1721373518492,1.20720889,3429.0,3428.3,2.91688]
[1721373518793,1.51510267,3429.1,3428.4,2.9168]
[1721373518794,1.20720889,3429.1,3428.4,2.9168]
[1721373518940,1.20720889,3429.2,3428.5,0.29168]
[1721373519447,1.20720889,3429.4,3428.5,0.29168]
[1721373519686,1.20720889,3429.5,3428.6,0.05832224]
[1721373519844,4.12299889,3429.6,3428.6,0.05832224]
[1721373520053,1.20720889,3429.6,3428.6,0.05832224]
[1721373520376,1.20720889,3429.6,3428.5,0.29168]
[1721373520377,1.20720889,3429.7,3428.5,0.29168]
[1721373520607,1.20720889,3429.7,3428.8,2.91645]
[1721373520751,1.20720889,3429.7,3428.6,3.46662]
[1721373520752,2.3006343,3429.7,3428.9,2.91638]
[1721373520951,1.20720889,3429.7,3428.9,2.91638]
[1721373521152,1.20720889,3429.8,3428.9,2.91638]
[1721373521583,4.12280889,3429.9,3428.9,2.91638]
[1721373521796,1.20720889,3429.8,3429.0,2.91629]
[1721373521983,4.12280889,3429.9,3429.0,2.91629]
[1721373522360,2.9156,3429.9,3429.0,2.91629]
[1721373522652,3.58840889,3430.0,3429.1,2.91619]
[1721373522653,2.3812,3430.0,3429.1,2.91619]
[1721373523053,5.3812,3430.0,3429.1,2.91619]
[1721373523454,3.0,3430.0,3429.1,2.91619]
[1721373523890,5.91547,3430.0,3429.1,2.91619]
[1721373524511,2.91555,3429.9,3429.0,0.583283]
[1721373524679,3.91936289,3429.9,3428.9,2.91637]
[1721373524877,3.91936289,3429.9,3429.0,0.55]
[1721373525397,3.91936289,3429.9,3428.5,3.2084]
[1721373525398,2.91597,3429.4,3428.5,3.2084]
[1721373525705,2.91597,3429.4,3428.6,4.269168]
[1721373525883,2.91587,3429.5,3428.6,4.269168]
[1721373528378,2.91571,3429.7,3428.7,2.91655]
[1721373528577,2.91571,3429.7,3428.6,1.352528]
[1721373528779,2.91579,3429.6,3428.7,1.0223208]
[1721373529385,2.91593,3429.5,3428.7,1.0223208]
[1721373529586,2.91572,3429.7,3428.7,3.9388608]
[1721373530082,2.91572,3429.7,3428.8,2.91646]
[1721373530517,2.91581,3429.6,3428.8,2.91646]
[1721373530721,2.91581,3429.6,3428.8,4.07433088]
[1721373531903,2.91581,3429.6,3428.8,1.15787088]
[1721373532511,2.91581,3429.6,3428.8,4.07433088]
[1721373532684,2.9157,3429.7,3428.8,4.07433088]
[1721373532883,2.91587,3429.5,3428.8,1.15787088]
[1721373533520,2.9157,3429.7,3428.9,0.46244209]
[1721373533726,2.9157,3429.7,3428.9,1.01244209]
[1721373533927,2.9157,3429.7,3428.9,0.46244209]
[1721373534286,2.9157,3429.7,3428.9,3.37882209]
[1721373534704,2.91584,3429.6,3428.9,0.46244209]
[1721373534905,2.91593,3429.5,3428.7,0.55]
[1721373535117,2.91603,3429.4,3428.5,3.20837]
[1721373536400,2.91608,3429.3,3428.5,0.29168]
[1721373538021,2.91608,3429.3,3428.5,3.20839]
[1721373538827,2.91571,3429.7,3428.6,2.91663]
[1721373538997,2.91571,3429.7,3428.7,0.620831]
[1721373539200,2.91596,3429.4,3428.5,0.29168]
[1721373539589,2.91596,3429.4,3428.5,3.20839]
[1721373542698,2.91596,3429.4,3428.6,2.91663]
[1721373542897,2.91579,3429.6,3428.7,1.462512]
[1721373543231,5.9155,3430.0,3428.9,2.3361]
[1721373543394,5.9155,3430.0,3429.1,2.91621]
[1721373543395,2.9155,3430.0,3429.1,2.91621]
[1721373544341,3.0,3430.3,3429.2,3.68731349]
[1721373544541,2.91512,3430.4,3429.2,3.629]
[1721373544697,2.91512,3430.4,3429.3,0.3629]
[1721373544896,2.91512,3430.4,3429.5,2.91581]
[1721373546128,5.32184,3430.6,3429.6,2.91573]
[1721373546293,3.0,3430.5,3429.6,2.91573]
[1721373547033,5.32184,3430.6,3429.6,2.91573]
[1721373547233,5.32184,3430.6,3429.5,2.91581]
[1721373547234,5.32184,3430.6,3429.7,3.498844]
[1721373547604,2.91494,3430.6,3429.7,3.498844]
[1721373547836,2.91479,3430.8,3429.9,2.91552]
[1721373548039,3.0,3430.7,3429.9,2.91552]
[1721373548933,2.91494,3430.6,3429.7,5.21546]
[1721373549141,2.91494,3430.6,3429.8,0.55]
[1721373549641,2.91494,3430.6,3429.8,3.46561]
[1721373550139,2.91477,3430.8,3429.9,2.91549]
[1721373550739,2.91477,3430.8,3430.0,2.91544]
[1721373551845,2.91477,3430.8,3429.8,3.46561]
[1721373551846,2.91491,3430.7,3429.8,3.46561]
[1721373552143,2.91496,3430.6,3429.8,4.7245726]
[1721373552320,2.91496,3430.6,3429.8,1.8089626]
[1721373552521,2.91496,3430.6,3429.8,4.7245726]
[1721373554034,2.91496,3430.6,3429.8,1.8089626]
[1721373554248,2.91496,3430.6,3428.4,3.52564619]
[1721373554249,2.2665,3431.0,3428.6,7.4]
[1721373554545,2.91575,3429.7,3428.7,2.91654]
[1721373554908,2.9158,3429.6,3428.7,2.91654]
[1721373555311,2.2673,3430.0,3428.9,2.91638]
[1721373555312,2.91566,3429.8,3428.9,2.91638]
[1721373555532,2.91566,3429.8,3429.0,0.583292]
[1721373555810,5.18275,3430.0,3429.0,0.583292]
[1721373555811,2.91571,3429.7,3429.0,0.583292]
[1721373556326,2.2673,3430.0,3429.0,0.583292]
[1721373556327,2.91589,3429.5,3429.0,0.583292]
[1721373558184,2.91562,3429.8,3429.0,0.583292]
[1721373558185,2.91586,3429.6,3429.0,0.583292]
[1721373558318,2.91586,3429.6,3428.7,2.91654]
[1721373558663,2.91586,3429.6,3428.8,0.55]
[1721373560044,2.91588,3429.5,3428.8,0.55]
[1721373560411,2.91621,3429.2,3428.3,3.0]
[1721373560617,1.20720889,3429.6,3428.1,7.4]
[1721373560817,0.63901289,3429.7,3428.1,7.4]
[1721373560818,2.91653,3428.8,3428.1,7.4]
[1721373561038,2.91653,3428.8,3427.8,5.21689]
[1721373561348,2.91653,3428.8,3427.8,8.29589]
[1721373561512,2.91653,3428.8,3427.9,1.121323]
[1721373561982,2.91653,3428.8,3427.9,7.038553]
[1721373562282,2.91653,3428.8,3428.0,2.91714]
[1721373562443,2.91635,3429.0,3428.0,2.91714]
[1721373563201,4.12337889,3429.2,3428.0,3.079]
[1721373563458,4.12337889,3429.2,3428.1,1.4999923]
[1721373563459,2.91617,3429.2,3428.1,1.4999923]
[1721373563682,2.91617,3429.2,3428.3,2.91683]
[1721373564598,2.91617,3429.2,3428.1,4.4170523]
[1721373564599,1.20720889,3429.5,3428.7,2.91655]
[1721373564753,2.91584,3429.6,3428.7,2.91655]
[1721373564754,4.12304889,3429.6,3428.7,2.91655]
[1721373564952,4.12304889,3429.6,3428.8,0.583327]
[1721373564953,2.91584,3429.6,3428.8,0.583327]
[1721373565856,4.12304889,3429.6,3428.8,0.583327]
[1721373566259,1.20720889,3429.6,3428.8,0.583327]
[1721373566477,4.4290433,3429.8,3428.8,3.499777]
[1721373566478,1.20720889,3429.8,3428.8,3.499777]
[1721373566786,1.20720889,3430.0,3429.2,2.91607]
[1721373566948,1.20720889,3430.2,3429.3,3.46601]
[1721373567148,1.20720889,3430.2,3429.4,0.638208]
[1721373567944,4.20720889,3430.2,3429.4,0.638208]
[1721373568150,1.20720889,3430.2,3429.5,2.91586]
[1721373568386,4.42921171,3430.4,3429.5,2.91586]
[1721373568387,4.12232889,3430.4,3429.5,2.91586]
[1721373568705,1.51409171,3430.5,3429.6,3.46571]
[1721373568706,1.20720889,3430.5,3429.6,3.46571]
[1721373568906,4.12214889,3430.6,3429.7,0.9489718]
[1721373569194,2.91494,3430.6,3429.7,0.9489718]
[1721373569562,3.48030889,3430.7,3429.8,2.9156]
[1721373570156,6.39516889,3430.7,3429.8,2.9156]
[1721373570397,6.39516889,3430.7,3429.9,0.73302818]
[1721373571702,2.91495,3430.6,3429.9,0.73302818]
[1721373572967,4.12201889,3430.8,3429.9,0.73302818]
[1721373573308,1.51400231,3431.0,3430.0,2.91544]
[1721373573309,4.12185889,3431.0,3430.0,2.91544]
[1721373573461,2.91465,3431.0,3430.0,2.91544]
[1721373573663,2.91465,3431.0,3430.1,0.36484682]
[1721373574083,4.12185889,3431.0,3430.1,0.36484682]
[1721373574415,2.91465,3431.0,3430.1,0.36484682]
[1721373578386,4.12173889,3431.1,3430.2,2.97350046]
[1721373578605,2.91453,3431.1,3430.3,0.05829757]
[1721373578775,1.20720889,3431.2,3430.3,3.78724044]
[1721373578979,7.12154889,3431.4,3430.3,3.78724044]
[1721373579413,5.91434,3431.4,3430.3,3.78724044]
[1721373580286,5.91434,3431.4,3430.5,2.91496]
[1721373580596,5.28979,3431.6,3430.7,2.91485]
[1721373583087,2.91409,3431.6,3430.7,2.91485]
[1721373583282,2.91418,3431.5,3430.7,2.91485]
[1721373587205,2.914,3431.7,3430.8,2.91475]
[1721373587537,5.91409,3431.6,3430.7,2.91484]
[1721373587709,3.0611651,3431.8,3430.9,3.46466]
[1721373588134,0.1472051,3431.8,3430.9,3.46466]
[1721373588433,0.1472051,3431.8,3431.1,2.91444]
[1721373588640,0.1472051,3431.8,3431.2,2.91442]
[1721373588797,0.1472051,3431.8,3431.3,0.291442]
[1721373592229,0.1472051,3431.8,3431.4,0.05827905]
[1721373592417,0.1472051,3431.8,3431.4,2.91424]
[1721373594329,0.1472051,3431.8,3431.5,2.9724443]
[1721373594529,0.1472051,3431.8,3431.5,2.91417]
[1721373594824,0.1472051,3431.8,3431.6,3.2346312]
[1721373595205,0.1472051,3431.8,3431.6,5.5899312]
[1721373595753,0.1472051,3431.8,3431.6,0.3205612]
[1721373597744,0.1472051,3431.8,3431.6,3.2346412]
[1721373598108,0.1472051,3431.8,3431.7,2.914]
[1721373598314,0.1472051,3431.8,3431.7,4.07887212]
[1721373600342,0.1472051,3431.8,3431.7,6.99287212]
[1721373600559,0.1472051,3431.8,3431.7,4.07887212]
[1721373601279,0.1472051,3431.8,3431.7,1.16487212]
[1721373601454,0.1472051,3431.8,3431.7,0.61487212]
[1721373601761,0.1472051,3431.8,3431.4,2.91425]
[1721373601968,0.1472051,3431.8,3431.5,3.46415]
[1721373602275,0.1472051,3431.8,3431.7,2.914]
[1721373602429,0.1472051,3431.8,3431.7,3.464]
[1721373603138,0.1472051,3431.8,3431.7,0.55]
[1721373603340,0.1472051,3431.8,3431.7,1.187833]
[1721373605733,0.1472051,3431.8,3431.7,4.101833]
[1721373607492,0.1472051,3431.8,3431.7,1.187833]
[1721373607702,0.1472051,3431.8,3431.7,0.637833]
[1721373607881,2.91404,3431.7,3430.7,2.91485]
[1721373608093,0.1472051,3431.8,3430.5,2.91502]
[1721373608094,2.4916,3431.6,3430.5,2.91502]
[1721373608250,2.91444,3431.2,3430.0,7.4]
[1721373608450,2.2705,3430.8,3430.0,2.91544]
[1721373609155,2.2705,3430.8,3429.8,2.91561]
[1721373609391,5.18528,3430.8,3429.9,0.583138]
[1721373609747,2.2705,3430.8,3429.9,0.583138]
[1721373610099,2.2705,3430.8,3430.0,2.91545]
[1721373610404,2.91503,3430.5,3429.9,0.583138]
[1721373610548,2.91503,3430.5,3429.5,2.91579]
[1721373610549,2.91503,3430.5,3429.6,2.91575]
[1721373611185,5.18528,3430.8,3429.6,2.91575]
[1721373611186,2.9149,3430.7,3429.6,2.91575]
[1721373611391,2.9149,3430.7,3429.7,2.91569]
[1721373611765,2.9149,3430.7,3429.3,7.4]
[1721373611766,2.91511,3430.4,3429.4,2.91594]
[1721373612086,2.91527,3430.3,3429.5,1.323203]
[1721373612293,2.3016,3430.4,3429.5,1.323203]
[1721373612594,2.91546,3430.0,3429.3,7.4]
[1721373612812,2.91563,3429.8,3429.3,7.4]
[1721373612984,2.91563,3429.8,3428.8,2.91646]
[1721373613449,2.91571,3429.7,3428.8,2.91646]
[1721373613646,2.91571,3429.7,3428.6,2.91663]
[1721373613885,2.91571,3429.7,3428.7,0.583343]
[1721373613886,2.3016,3429.6,3428.7,0.583343]
[1721373614891,2.91597,3429.4,3428.7,0.583343]
[1721373615259,2.91615,3429.2,3428.3,2.91686]
[1721373615461,2.91639,3428.9,3428.0,2.91714]
[1721373615653,2.3016,3429.6,3428.1,2.91705]
[1721373615654,2.91629,3429.1,3428.1,2.91705]
[1721373615857,2.91605,3429.3,3428.3,2.91689]
[1721373616182,2.91588,3429.5,3428.3,3.208579]
[1721373616183,2.91615,3429.2,3428.3,3.208579]
[1721373616975,2.916,3429.4,3428.4,2.91678]
[1721373617310,5.3016,3429.6,3428.3,0.291689]
[1721373617311,2.91613,3429.2,3428.3,0.291689]
[1721373617779,2.91588,3429.5,3428.4,2.91679]
[1721373617949,3.0,3429.4,3428.4,2.91679]
[1721373618153,5.91599,3429.4,3428.5,0.6125439]
[1721373618402,2.91614,3429.2,3428.3,2.91688]
[1721373618583,3.0,3429.4,3428.4,3.4668]
[1721373618765,5.91591,3429.5,3428.4,3.4668]
[1721373619397,2.91622,3429.1,3427.9,2.91715]
[1721373619701,2.91622,3429.1,3428.1,2.917]
[1721373619885,2.91622,3429.1,3428.0,0.841715]
[1721373619886,3.0,3429.5,3428.0,0.291715]
[1721373620209,2.91638,3428.9,3428.0,0.291715]
[1721373620420,5.39786,3428.7,3428.0,0.291715]
[1721373620570,2.4813,3428.7,3428.0,0.291715]
[1721373621966,2.4813,3428.7,3428.1,0.3208935]
[1721373622478,2.91623,3429.1,3428.1,3.2379435]
[1721373622479,5.39363,3429.1,3428.1,3.2379435]
[1721373622704,3.0,3429.0,3428.1,0.3208935]
[1721373622914,2.91641,3428.9,3428.1,0.3208935]
[1721373623079,2.91632,3429.0,3428.1,0.3208935]
[1721373625605,2.91632,3429.0,3427.8,2.91731]
[1721373625606,2.91653,3428.8,3427.8,2.91731]
[1721373625931,2.4774,3429.1,3427.5,2.91757]
[1721373626112,2.91656,3428.7,3427.5,2.91757]
[1721373626434,2.91675,3428.5,3427.5,2.91757]
[1721373627127,2.91675,3428.5,3427.2,7.4]
[1721373627128,2.91684,3428.4,3427.4,2.91763]
[1721373627290,2.91684,3428.4,3427.5,3.949323]
[1721373629247,5.39367,3429.1,3428.1,2.91705]
[1721373629546,3.0,3429.0,3428.1,2.91705]
[1721373629728,5.9163,3429.0,3428.1,2.91705]
[1721373630101,3.0,3429.0,3428.1,2.91705]
[1721373630406,5.9163,3429.0,3428.2,0.583426]
[1721373631407,3.0,3429.0,3428.2,3.500326]
[1721373631618,2.4774,3429.1,3428.2,3.500326]
[1721373631848,2.4774,3429.1,3428.3,2.91688]
[1721373632237,2.4774,3429.1,3428.2,0.583426]
[1721373632553,2.4774,3429.1,3428.2,3.500366]
[1721373632753,2.4774,3429.1,3428.3,0.6417516]
[1721373633252,2.4774,3429.1,3428.3,3.5586416]
[1721373633456,3.0,3429.2,3428.3,3.5586416]
[1721373633653,5.17929,3429.5,3428.3,3.5586416]
[1721373633654,5.17929,3429.5,3428.5,2.91665]
[1721373633951,5.17929,3429.5,3427.8,5.21036]
[1721373633952,2.2634,3429.5,3428.6,2.91659]
[1721373634645,2.2634,3429.5,3428.7,2.91655]
[1721373634820,2.2634,3429.5,3428.8,0.291655]
[1721373635020,5.2634,3429.5,3428.8,0.291655]
[1721373635345,7.45,3430.6,3428.8,0.291655]
[1721373635346,2.91552,3430.0,3429.1,2.9162]
[1721373636150,2.4503,3430.1,3429.0,2.91628]
[1721373636324,5.36567,3430.1,3429.1,0.3207935]
[1721373636851,5.36567,3430.1,3429.1,3.2370035]
[1721373636852,2.91547,3430.0,3429.1,3.2370035]
[1721373637252,2.4503,3430.1,3429.2,2.91612]
[1721373637554,2.91554,3429.9,3429.1,0.3207935]
[1721373637852,5.3657,3430.1,3429.2,2.9161]
[1721373638054,3.0,3430.0,3429.3,0.61530935]
[1721373638417,5.91546,3430.0,3429.3,0.61530935]
[1721373638621,5.91546,3430.0,3429.1,0.3207935]
[1721373639556,2.3836,3429.4,3428.3,2.91689]
[1721373639779,2.3836,3429.4,3427.9,2.91723]
[1721373639933,2.91575,3429.7,3427.2,12.32]
[1721373639934,2.3836,3428.9,3427.5,2.91755]
[1721373640118,2.3836,3428.9,3427.6,0.520845]
[1721373640552,2.91656,3428.7,3427.6,3.438325]
[1721373640862,2.3836,3428.9,3427.6,3.438325]
[1721373640863,5.29999,3428.9,3427.9,2.91716]
[1721373641220,5.29999,3428.9,3428.0,2.91714]
[1721373642271,2.91648,3428.8,3428.0,2.91714]
[1721373642476,2.91648,3428.8,3427.6,0.520845]
[1721373642477,0.82163,3428.8,3427.7,2.91739]
[1721373642682,2.9169,3428.3,3427.6,0.520845]
[1721373642985,3.0,3429.5,3427.1,3.21079]
[1721373642986,2.4169,3427.8,3427.1,0.2929]
[1721373644066,2.91749,3427.6,3427.1,0.2929]
[1721373644299,2.4169,3427.8,3426.2,2.91867]
[1721373644300,2.91784,3427.2,3426.2,2.91867]
[1721373644424,2.91784,3427.2,3426.3,2.91858]
[1721373644631,2.91766,3427.4,3426.3,2.91858]
[1721373645026,2.91758,3427.5,3426.3,2.91858]
[1721373645227,2.4169,3427.8,3426.4,0.291858]
[1721373645426,2.4169,3427.8,3426.7,2.91819]
[1721373645627,2.4169,3427.8,3426.5,2.91841]
[1721373645628,2.91759,3427.5,3426.5,2.91841]
[1721373645831,2.91759,3427.5,3426.0,3.0]
[1721373645832,2.4169,3427.8,3426.0,6.072]
[1721373646078,8.33424,3427.8,3426.8,2.91809]
[1721373646333,8.33424,3427.8,3426.6,2.91833]
[1721373646334,2.91749,3427.6,3426.6,2.91833]
[1721373646565,2.91749,3427.6,3426.7,0.55]
[1721373647678,5.33423,3427.8,3426.7,0.54883972]
[1721373647861,2.4169,3427.8,3426.7,0.54883972]
[1721373648078,3.0,3428.2,3426.7,0.54883972]
[1721373648079,2.3235,3428.2,3426.9,2.91807]
[1721373648229,2.91674,3428.5,3427.5,2.91756]
[1721373648439,2.91681,3428.4,3427.5,3.501092]
[1721373649067,2.91664,3428.6,3427.5,0.583532]
[1721373649294,2.91664,3428.6,3427.7,2.91738]
[1721373649580,2.2685,3428.7,3427.5,2.91756]
[1721373649581,2.91673,3428.5,3427.5,2.91756]
[1721373649750,2.2685,3428.7,3427.9,2.91719]
[1721373649940,2.91629,3429.1,3428.0,2.91713]
[1721373650140,0.291629,3429.0,3428.0,2.91713]
[1721373650953,2.91647,3428.8,3427.8,2.91727]
[1721373651292,3.207939,3429.0,3427.8,2.91727]
[1721373651293,2.91656,3428.7,3427.8,2.91727]
[1721373652059,3.207939,3429.0,3427.9,2.91719]
[1721373652060,2.91639,3428.9,3427.9,2.91719]
[1721373652751,2.91648,3428.8,3427.9,2.91719]
[1721373653156,2.91641,3428.9,3428.0,2.91714]
[1721373653844,2.91621,3429.1,3427.9,0.583466]
[1721373653845,2.91647,3428.8,3427.9,3.500686]
[1721373655494,2.9163,3429.0,3427.9,3.500686]
[1721373655495,2.91657,3428.7,3427.9,0.583466]
[1721373655781,2.91657,3428.7,3427.8,2.91731]
[1721373655983,2.91657,3428.7,3427.9,2.91722]
[1721373656357,2.91657,3428.7,3427.7,2.91735]
[1721373656559,2.91657,3428.7,3427.8,2.91729]
[1721373657552,2.91664,3428.6,3427.6,2.91748]
[1721373657753,2.91664,3428.6,3427.7,4.050853]
[1721373657954,2.91664,3428.6,3427.7,1.133513]
[1721373658173,2.91657,3428.7,3427.8,2.91731]
[1721373659596,2.91666,3428.6,3427.7,1.133513]
[1721373659765,2.91666,3428.6,3427.8,0.4050993]
[1721373660852,2.91647,3428.8,3427.8,3.3224193]
[1721373661052,2.91632,3429.0,3427.8,3.3224193]
[1721373661053,2.91657,3428.7,3427.8,3.3224193]
[1721373662057,2.4495,3429.2,3427.8,3.3224193]
[1721373662058,2.4495,3429.2,3427.9,3.0259]
[1721373662261,2.4495,3429.2,3428.4,2.9168]
[1721373663291,5.36564,3429.2,3428.4,0.583385]
[1721373663530,5.36564,3429.2,3428.2,2.91692]
[1721373664268,5.36564,3429.2,3428.3,2.91688]
[1721373664820,2.4495,3429.2,3428.5,2.91668]
[1721373665365,2.4495,3429.2,3428.3,2.91688]
[1721373665672,2.4495,3429.2,3428.1,2.91706]
[1721373665673,5.36563,3429.2,3428.4,2.9168]
[1721373666014,5.36563,3429.2,3427.8,3.3223593]
[1721373666015,2.91639,3428.9,3427.8,3.3223593]
[1721373666526,2.91623,3429.1,3428.2,2.91691]
[1721373666672,2.4495,3429.2,3428.3,2.91687]
[1721373666878,2.4495,3429.2,3428.4,2.9168]
[1721373667112,2.91589,3429.5,3428.5,2.91671]
[1721373667322,2.91598,3429.4,3428.5,2.91671]
[1721373668025,2.91613,3429.2,3428.4,0.583371]
[1721373668237,2.91623,3429.1,3428.3,2.91688]
[1721373668562,2.91623,3429.1,3427.5,5.91751]
[1721373668563,2.4494,3428.8,3427.9,2.91722]
[1721373668825,2.4494,3428.8,3428.0,2.91714]
[1721373669138,2.4494,3428.8,3428.0,3.728533]
[1721373669322,5.3655,3429.3,3428.4,2.91679]
[1721373669630,5.3655,3429.3,3427.6,7.4]
[1721373669631,5.36635,3428.3,3427.6,7.4]
[1721373669845,0.828313,3428.2,3427.0,2.2794]
[1721373669989,0.828313,3428.2,3427.1,2.91789]
[1721373670918,2.91715,3428.0,3427.1,2.91789]
[1721373671305,5.36635,3428.3,3427.2,2.91782]
[1721373671500,5.36635,3428.3,3427.4,2.91762]
[1721373672526,2.91698,3428.2,3427.3,0.55]
[1721373672715,2.91698,3428.2,3427.3,4.03023189]
[1721373674858,2.4494,3428.3,3426.8,13.31809]
[1721373675060,2.91729,3427.9,3426.9,6.46803]
[1721373675367,2.91765,3427.5,3426.5,2.91838]
[1721373675521,5.36475,3427.5,3426.3,2.91855]
[1721373675718,2.91774,3427.3,3426.1,2.2825]
[1721373675917,2.918,3427.0,3426.1,6.753285]
[1721373676877,2.4471,3427.5,3426.1,3.834535]
[1721373676878,5.36468,3427.5,3426.1,3.834535]
[1721373677050,2.91775,3427.3,3426.4,2.9185]
[1721373677220,5.36468,3427.5,3426.5,2.91838]
[1721373677416,2.91775,3427.3,3426.3,2.91855]
[1721373677618,2.91766,3427.4,3426.4,3.8856445]
[1721373677818,2.91775,3427.3,3426.4,3.8856445]
[1721373678054,2.91775,3427.3,3426.5,0.55]
[1721373678619,5.36471,3427.5,3426.5,3.46842]
[1721373678880,2.91767,3427.4,3426.5,3.46842]
[1721373679030,2.91767,3427.4,3426.5,4.20383845]
[1721373679661,2.91749,3427.6,3426.7,2.91823]
[1721373680153,2.91733,3427.8,3426.5,4.20379845]
[1721373680154,2.91758,3427.5,3426.5,4.20379845]
[1721373680341,2.91758,3427.5,3426.6,2.91833]
[1721373681429,2.91742,3427.7,3426.7,2.91819]
[1721373681655,2.91742,3427.7,3426.7,3.7271103]
[1721373682222,5.40435,3427.9,3426.9,2.91808]
[1721373682427,2.4871,3427.9,3427.1,2.91785]
[1721373682825,2.91708,3428.1,3427.1,2.91785]
[1721373683075,2.4871,3428.2,3427.2,0.583579]
[1721373683236,2.91694,3428.3,3425.9,2.91893]
[1721373683237,2.4871,3427.0,3425.9,2.91893]
[1721373683436,2.4871,3427.4,3426.5,2.91842]
[1721373684230,2.91775,3427.3,3426.3,2.91859]
[1721373684466,2.91775,3427.3,3426.4,2.9185]
[1721373684669,2.91775,3427.3,3426.4,0.583725]
[1721373684842,2.9181,3426.9,3426.1,2.91876]
[1721373685173,2.918,3427.0,3426.1,2.91876]
[1721373685474,2.9181,3426.9,3425.9,2.91887]
[1721373685680,2.91792,3427.1,3426.1,2.91876]
[1721373685975,2.91802,3427.0,3426.1,3.502528]
[1721373686741,5.40477,3427.4,3426.4,2.91845]
[1721373687228,5.40477,3427.4,3425.6,0.05836274]
[1721373687229,2.4871,3427.4,3426.6,2.91831]
[1721373687644,2.4871,3427.4,3426.7,2.91825]
[1721373687845,2.4871,3427.9,3426.6,2.91834]
[1721373688065,2.91764,3427.5,3426.4,2.91849]
[1721373688265,2.91764,3427.5,3426.3,2.91859]
[1721373688266,2.91783,3427.2,3426.3,2.91859]
[1721373688434,2.91803,3427.0,3426.0,2.91883]
[1721373688630,5.16983,3427.0,3426.0,2.91883]
[1721373689278,2.91809,3426.9,3426.0,2.91883]
[1721373689568,2.91809,3426.9,3425.8,2.91902]
[1721373689569,0.808781,3426.8,3425.8,2.91902]
[1721373689782,2.91827,3426.7,3425.8,2.91902]
[1721373689991,0.808781,3426.8,3425.8,2.91902]
[1721373690289,0.808781,3426.8,3426.0,2.91885]
[1721373690290,3.727001,3426.8,3426.0,2.91885]
[1721373690689,0.808781,3426.8,3426.0,2.91885]
[1721373690907,5.16984,3427.0,3426.0,2.91885]
[1721373691189,2.91809,3426.9,3426.0,2.91885]
[1721373692203,2.91817,3426.8,3426.0,2.91885]
[1721373693656,2.4969,3426.6,3425.2,2.91951]
[1721373693995,2.4969,3426.6,3425.3,2.91943]
[1721373693996,2.91874,3426.2,3425.3,2.91943]
[1721373694314,2.91895,3425.9,3424.9,2.91977]
[1721373694607,3.001272,3425.8,3424.9,2.91977]
[1721373694910,2.4175,3425.8,3424.6,2.375]
[1721373695415,2.4175,3425.8,3424.2,2.3466]
[1721373695993,2.91937,3425.4,3424.4,2.9202]
[1721373696299,2.91937,3425.4,3424.4,3.44688]
[1721373696602,2.91937,3425.4,3424.5,2.92012]
[1721373696767,2.91924,3425.6,3424.5,2.92012]
[1721373696967,2.91924,3425.6,3424.7,2.91993]
[1721373697183,2.91924,3425.6,3424.7,3.556603]
[1721373697480,2.4175,3425.8,3424.7,3.556603]
[1721373697481,2.4175,3425.8,3424.9,2.91974]
[1721373697869,2.2945,3426.3,3425.5,2.91926]
[1721373698281,5.2131,3426.3,3425.4,2.91934]
[1721373698482,5.2131,3426.3,3425.0,2.8615]
[1721373698483,2.2945,3426.3,3425.5,2.91925]